[Event "Titled Tuesday Blitz June 20 Late 2023"]
[White "Suarez Uriel, Adrian"]
[Black "Martins, Bruno Andre Leite"]
[WhiteFideId "22230874"]
[BlackFideId "1942255"]
[WhiteElo "2331"]
[BlackElo "2241"]
[Result "1-0"]
[Round "8"]
[TimeControl "180+2"]
[Date "2023.06.20"]
[WhiteClock "0:01:49"]
[BlackClock "0:00:46"]
[Board "56"]

1. e4 {[%clk 0:03:00]}  c5 {[%clk 0:02:53]} 2. Ne2 {[%clk 0:03:00]}  Nc6 {[%clk 0:02:51]} 3. d4 {[%clk 0:03:00]}  cxd4 {[%clk 0:02:52]} 4. Nxd4 {[%clk 0:03:00]}  e5 {[%clk 0:02:52]} 5. Nb5 {[%clk 0:02:59]}  a6 {[%clk 0:02:53]} 6. Nd6+ {[%clk 0:02:59]}  Bxd6 {[%clk 0:02:54]} 7. Qxd6 {[%clk 0:03:00]}  Qf6 {[%clk 0:02:54]} 8. Qd1 {[%clk 0:02:59]}  Qg6 {[%clk 0:02:52]} 9. Nc3 {[%clk 0:02:58]}  Nge7 {[%clk 0:02:50]} 10. h4 {[%clk 0:02:58]}  h5 {[%clk 0:02:50]} 11. Bg5 {[%clk 0:02:57]}  d5 {[%clk 0:02:49]} 12. exd5 {[%clk 0:02:57]}  Nb4 {[%clk 0:02:46]} 13. Bd3 {[%clk 0:02:57]}  Bf5 {[%clk 0:02:45]} 14. Bxf5 {[%clk 0:02:38]}  Qxf5 {[%clk 0:02:34]} 15. Rc1 {[%clk 0:02:33]}  f6 {[%clk 0:02:30]} 16. a3 {[%clk 0:02:30]}  Nbxd5 {[%clk 0:01:52]} 17. Nxd5 {[%clk 0:02:28]}  Qe4+ {[%clk 0:01:51]} 18. Ne3 {[%clk 0:02:24]}  fxg5 {[%clk 0:01:52]} 19. hxg5 {[%clk 0:02:25]}  Rd8 {[%clk 0:01:25]} 20. Qe2 {[%clk 0:02:23]}  Nc6 {[%clk 0:01:11]} 21. Rxh5 {[%clk 0:02:20]}  Ke7 {[%clk 0:01:08]} 22. c3 {[%clk 0:01:56]}  Qf4 {[%clk 0:00:49]} 23. Rxh8 {[%clk 0:01:50]}  Rxh8 {[%clk 0:00:46]} 24. Nd5+ {[%clk 0:01:49]} 1-0


[Site "https://www.chess.com"]

[Event "Titled Tuesday Blitz June 20 Late 2023"]
[White "Bernabeu Lopez, Carlos Javier"]
[Black "Delorme, Axel"]
[WhiteFideId "2235366"]
[BlackFideId "632023"]
[WhiteElo "2344"]
[BlackElo "2478"]
[Result "0-1"]
[Round "8"]
[TimeControl "180+2"]
[Date "2023.06.20"]
[WhiteClock "0:01:48"]
[BlackClock "0:00:19"]
[Board "57"]

1. e4 {[%clk 0:02:54]}  c5 {[%clk 0:02:59]} 2. Nf3 {[%clk 0:02:54]}  d6 {[%clk 0:03:00]} 3. Bb5+ {[%clk 0:02:54]}  Nd7 {[%clk 0:02:59]} 4. O-O {[%clk 0:02:53]}  a6 {[%clk 0:02:58]} 5. Bxd7+ {[%clk 0:02:53]}  Bxd7 {[%clk 0:02:59]} 6. d4 {[%clk 0:02:54]}  cxd4 {[%clk 0:02:59]} 7. Qxd4 {[%clk 0:02:55]}  e5 {[%clk 0:02:57]} 8. Qd3 {[%clk 0:02:55]}  h6 {[%clk 0:02:56]} 9. c4 {[%clk 0:02:56]}  b5 {[%clk 0:02:56]} 10. Nc3 {[%clk 0:02:56]}  bxc4 {[%clk 0:02:53]} 11. Qxc4 {[%clk 0:02:57]}  Nf6 {[%clk 0:02:52]} 12. Be3 {[%clk 0:02:56]}  Be7 {[%clk 0:02:52]} 13. Rfd1 {[%clk 0:02:56]}  O-O {[%clk 0:02:51]} 14. h3 {[%clk 0:02:53]}  Qb8 {[%clk 0:02:50]} 15. Qb3 {[%clk 0:02:52]}  Qxb3 {[%clk 0:02:45]} 16. axb3 {[%clk 0:02:53]}  Rfb8 {[%clk 0:02:44]} 17. Nd2 {[%clk 0:02:53]}  Be6 {[%clk 0:02:39]} 18. Nc4 {[%clk 0:02:38]}  Bxc4 {[%clk 0:02:28]} 19. bxc4 {[%clk 0:02:38]}  Rxb2 {[%clk 0:02:28]} 20. Nd5 {[%clk 0:02:39]}  Nxd5 {[%clk 0:02:27]} 21. cxd5 {[%clk 0:02:40]}  a5 {[%clk 0:02:13]} 22. Ra4 {[%clk 0:02:39]}  Bd8 {[%clk 0:01:42]} 23. Rda1 {[%clk 0:02:37]}  h5 {[%clk 0:01:33]} 24. Rc1 {[%clk 0:02:35]}  Bb6 {[%clk 0:01:28]} 25. Bxb6 {[%clk 0:02:34]}  Rxb6 {[%clk 0:01:29]} 26. Rca1 {[%clk 0:02:35]}  Rb5 {[%clk 0:01:28]} 27. h4 {[%clk 0:02:34]}  Kf8 {[%clk 0:01:26]} 28. f3 {[%clk 0:02:33]}  Ke7 {[%clk 0:01:25]} 29. Kh2 {[%clk 0:02:33]}  Kd7 {[%clk 0:01:24]} 30. Kg3 {[%clk 0:02:34]}  Kc7 {[%clk 0:01:20]} 31. Rc1+ {[%clk 0:02:34]}  Kb7 {[%clk 0:01:14]} 32. Rc6 {[%clk 0:02:35]}  Rb6 {[%clk 0:01:12]} 33. Rc1 {[%clk 0:02:35]}  Rb4 {[%clk 0:01:11]} 34. Ra3 {[%clk 0:02:35]}  a4 {[%clk 0:01:10]} 35. Rac3 {[%clk 0:02:36]}  a3 {[%clk 0:01:04]} 36. Rc7+ {[%clk 0:02:34]}  Kb6 {[%clk 0:00:56]} 37. R7c6+ {[%clk 0:02:34]}  Kb5 {[%clk 0:00:54]} 38. Rxd6 {[%clk 0:02:10]}  a2 {[%clk 0:00:54]} 39. Rd7 {[%clk 0:02:11]}  a1=Q {[%clk 0:00:47]} 40. Rb7+ {[%clk 0:02:10]}  Ka6 {[%clk 0:00:46]} 41. Rxa1+ {[%clk 0:02:07]}  Kxb7 {[%clk 0:00:46]} 42. Rd1 {[%clk 0:02:04]}  Rb2 {[%clk 0:00:43]} 43. Rg1 {[%clk 0:02:03]}  Raa2 {[%clk 0:00:40]} 44. Kh3 {[%clk 0:02:03]}  Kc7 {[%clk 0:00:39]} 45. Kg3 {[%clk 0:02:04]}  Kd6 {[%clk 0:00:39]} 46. Kh3 {[%clk 0:02:05]}  g6 {[%clk 0:00:35]} 47. Kg3 {[%clk 0:02:04]}  f5 {[%clk 0:00:35]} 48. exf5 {[%clk 0:02:05]}  gxf5 {[%clk 0:00:35]} 49. Kh3 {[%clk 0:02:06]}  f4 {[%clk 0:00:34]} 50. Kh2 {[%clk 0:02:03]}  Kxd5 {[%clk 0:00:33]} 51. Kh3 {[%clk 0:02:04]}  e4 {[%clk 0:00:33]} 52. fxe4+ {[%clk 0:02:04]}  Kxe4 {[%clk 0:00:34]} 53. Re1+ {[%clk 0:02:04]}  Kf5 {[%clk 0:00:33]} 54. Re8 {[%clk 0:02:02]}  Rb3+ {[%clk 0:00:29]} 55. Kh2 {[%clk 0:02:02]}  f3 {[%clk 0:00:29]} 56. Rf8+ {[%clk 0:01:54]}  Kg4 {[%clk 0:00:28]} 57. Rg8+ {[%clk 0:01:49]}  Kxh4 {[%clk 0:00:20]} 58. Kh1 {[%clk 0:01:48]}  Rb1+ {[%clk 0:00:18]} 59. Kh2 {[%clk 0:01:46]}  Rxg2+ {[%clk 0:00:17]} 60. Rxg2 {[%clk 0:01:47]}  fxg2 {[%clk 0:00:18]} 61. Kxg2 {[%clk 0:01:47]}  Rb2+ {[%clk 0:00:19]} 62. Kh1 {[%clk 0:01:47]}  Kg3 {[%clk 0:00:19]} 63. Kg1 {[%clk 0:01:48]}  Rb1# {[%clk 0:00:19]} 0-1


[Site "https://www.chess.com"]

[Event "Titled Tuesday Blitz June 20 Late 2023"]
[White "Moral Garcia, Serafin"]
[Black "Ansh M Shah"]
[WhiteFideId "2201925"]
[BlackFideId "25033379"]
[WhiteElo "2274"]
[BlackElo "2084"]
[Result "1-0"]
[Round "8"]
[TimeControl "180+2"]
[Date "2023.06.20"]
[WhiteClock "0:01:08"]
[BlackClock "0:02:10"]
[Board "60"]

1. e4 {[%clk 0:03:00]}  c6 {[%clk 0:03:00]} 2. d4 {[%clk 0:03:00]}  d5 {[%clk 0:03:01]} 3. exd5 {[%clk 0:03:00]}  cxd5 {[%clk 0:03:02]} 4. c4 {[%clk 0:03:00]}  Nc6 {[%clk 0:03:03]} 5. Nc3 {[%clk 0:02:58]}  Nf6 {[%clk 0:03:04]} 6. Bg5 {[%clk 0:02:57]}  dxc4 {[%clk 0:03:00]} 7. Bxc4 {[%clk 0:02:57]}  h6 {[%clk 0:03:00]} 8. Bxf6 {[%clk 0:02:52]}  exf6 {[%clk 0:03:01]} 9. Nf3 {[%clk 0:02:29]}  Bd6 {[%clk 0:03:00]} 10. O-O {[%clk 0:02:29]}  O-O {[%clk 0:03:00]} 11. h3 {[%clk 0:02:27]}  Bf5 {[%clk 0:03:00]} 12. Re1 {[%clk 0:02:24]}  Rc8 {[%clk 0:02:57]} 13. Bd3 {[%clk 0:02:20]}  Bxd3 {[%clk 0:02:55]} 14. Qxd3 {[%clk 0:02:19]}  Bb8 {[%clk 0:02:55]} 15. Rad1 {[%clk 0:02:12]}  a6 {[%clk 0:02:54]} 16. Ne4 {[%clk 0:02:05]}  Qc7 {[%clk 0:02:53]} 17. d5 {[%clk 0:02:02]}  Ne5 {[%clk 0:02:52]} 18. Nxe5 {[%clk 0:02:01]}  Qxe5 {[%clk 0:02:53]} 19. d6 {[%clk 0:01:55]}  Rfd8 {[%clk 0:02:49]} 20. Qb3 {[%clk 0:01:54]}  Qf4 {[%clk 0:02:28]} 21. Qxb7 {[%clk 0:01:51]}  f5 {[%clk 0:02:28]} 22. g3 {[%clk 0:01:32]}  Qe5 {[%clk 0:02:18]} 23. d7 {[%clk 0:01:12]}  Rc7 {[%clk 0:02:15]} 24. Qxb8 {[%clk 0:01:07]}  Rxb8 {[%clk 0:02:14]} 25. d8=Q+ {[%clk 0:01:07]}  Rxd8 {[%clk 0:02:14]} 26. Rxd8+ {[%clk 0:01:07]}  Kh7 {[%clk 0:02:14]} 27. Ng5+ {[%clk 0:01:07]}  hxg5 {[%clk 0:02:10]} 28. Rxe5 {[%clk 0:01:08]} 1-0


[Site "https://www.chess.com"]

[Event "Titled Tuesday Blitz June 20 Late 2023"]
[White "Ingebretsen, Jens E"]
[Black "Nikologorsky, Matfei"]
[WhiteFideId "1522965"]
[BlackFideId "24102474"]
[WhiteElo "2213"]
[BlackElo "2153"]
[Result "0-1"]
[Round "8"]
[TimeControl "180+2"]
[Date "2023.06.20"]
[WhiteClock "0:00:25"]
[BlackClock "0:01:11"]
[Board "61"]

1. b3 {[%clk 0:03:00]}  Nf6 {[%clk 0:02:59]} 2. Bb2 {[%clk 0:03:01]}  d5 {[%clk 0:02:59]} 3. e3 {[%clk 0:03:01]}  c6 {[%clk 0:03:00]} 4. c4 {[%clk 0:03:02]}  g6 {[%clk 0:02:59]} 5. Nf3 {[%clk 0:03:02]}  Bg7 {[%clk 0:02:59]} 6. Nc3 {[%clk 0:03:01]}  O-O {[%clk 0:02:59]} 7. d4 {[%clk 0:03:01]}  Bg4 {[%clk 0:02:55]} 8. h3 {[%clk 0:02:57]}  Bxf3 {[%clk 0:02:55]} 9. gxf3 {[%clk 0:02:57]}  e6 {[%clk 0:02:56]} 10. Bd3 {[%clk 0:02:57]}  Nbd7 {[%clk 0:02:54]} 11. f4 {[%clk 0:02:54]}  Nh5 {[%clk 0:02:47]} 12. c5 {[%clk 0:02:51]}  f5 {[%clk 0:02:46]} 13. Qf3 {[%clk 0:02:45]}  b6 {[%clk 0:02:36]} 14. cxb6 {[%clk 0:02:41]}  axb6 {[%clk 0:02:36]} 15. O-O {[%clk 0:02:41]}  Qh4 {[%clk 0:02:31]} 16. a4 {[%clk 0:02:34]}  Kh8 {[%clk 0:02:29]} 17. Rac1 {[%clk 0:02:24]}  Bh6 {[%clk 0:02:28]} 18. Ne2 {[%clk 0:02:24]}  Rac8 {[%clk 0:02:21]} 19. Ba6 {[%clk 0:02:24]}  Rc7 {[%clk 0:02:21]} 20. Ba3 {[%clk 0:02:24]}  Rg8 {[%clk 0:02:12]} 21. Bd6 {[%clk 0:02:21]}  Ra7 {[%clk 0:02:12]} 22. Bd3 {[%clk 0:02:20]}  Rc8 {[%clk 0:02:03]} 23. Bb5 {[%clk 0:02:07]}  Bf8 {[%clk 0:01:56]} 24. Bxf8 {[%clk 0:02:04]}  Rxf8 {[%clk 0:01:55]} 25. Rxc6 {[%clk 0:02:01]}  Qe7 {[%clk 0:01:52]} 26. Ng3 {[%clk 0:01:55]}  Nhf6 {[%clk 0:01:51]} 27. Rfc1 {[%clk 0:01:55]}  Rg8 {[%clk 0:01:43]} 28. Rc7 {[%clk 0:01:49]}  Raa8 {[%clk 0:01:43]} 29. Qe2 {[%clk 0:01:47]}  Rad8 {[%clk 0:01:37]} 30. R1c6 {[%clk 0:01:42]}  g5 {[%clk 0:01:37]} 31. fxg5 {[%clk 0:01:40]}  Rxg5 {[%clk 0:01:36]} 32. Rxb6 {[%clk 0:01:40]}  Ne4 {[%clk 0:01:25]} 33. Kh2 {[%clk 0:01:33]}  Qg7 {[%clk 0:01:16]} 34. Rbb7 {[%clk 0:01:28]}  Rxg3 {[%clk 0:01:14]} 35. f3 {[%clk 0:00:26]}  Rxh3+ {[%clk 0:01:10]} 36. Kxh3 {[%clk 0:00:25]}  Qg3# {[%clk 0:01:11]} 0-1


[Site "https://www.chess.com"]

[Event "Titled Tuesday Blitz June 20 Late 2023"]
[White "Bjelobrk, Igor"]
[Black "Jonkman, Harmen"]
[WhiteFideId "4300726"]
[BlackFideId "1002708"]
[WhiteElo "2319"]
[BlackElo "2368"]
[Result "1-0"]
[Round "8"]
[TimeControl "180+2"]
[Date "2023.06.20"]
[WhiteClock "0:00:06"]
[BlackClock "0:00:03"]
[Board "62"]

1. d4 {[%clk 0:02:56]}  d5 {[%clk 0:02:59]} 2. c4 {[%clk 0:02:55]}  dxc4 {[%clk 0:02:58]} 3. Nf3 {[%clk 0:02:54]}  Nf6 {[%clk 0:02:58]} 4. e3 {[%clk 0:02:54]}  e6 {[%clk 0:02:59]} 5. Bxc4 {[%clk 0:02:53]}  c5 {[%clk 0:03:00]} 6. O-O {[%clk 0:02:51]}  a6 {[%clk 0:03:00]} 7. Nc3 {[%clk 0:02:30]}  b5 {[%clk 0:03:00]} 8. Be2 {[%clk 0:02:30]}  Bb7 {[%clk 0:03:00]} 9. dxc5 {[%clk 0:02:29]}  Bxc5 {[%clk 0:02:57]} 10. Qxd8+ {[%clk 0:02:28]}  Kxd8 {[%clk 0:02:57]} 11. Nd2 {[%clk 0:02:26]}  Ke7 {[%clk 0:02:55]} 12. Nb3 {[%clk 0:02:26]}  Bd6 {[%clk 0:02:55]} 13. f3 {[%clk 0:02:19]}  Nbd7 {[%clk 0:02:53]} 14. e4 {[%clk 0:02:19]}  Rhc8 {[%clk 0:02:52]} 15. Be3 {[%clk 0:02:16]}  Ne5 {[%clk 0:02:50]} 16. Na5 {[%clk 0:02:12]}  Rab8 {[%clk 0:02:28]} 17. a4 {[%clk 0:02:03]}  Nc4 {[%clk 0:02:18]} 18. Bxc4 {[%clk 0:01:53]}  bxc4 {[%clk 0:02:17]} 19. Rfd1 {[%clk 0:01:29]}  Bb4 {[%clk 0:01:45]} 20. Nxb7 {[%clk 0:01:28]}  Rxb7 {[%clk 0:01:45]} 21. Rac1 {[%clk 0:01:23]}  Nd7 {[%clk 0:01:44]} 22. Ne2 {[%clk 0:01:19]}  Ne5 {[%clk 0:01:43]} 23. Rc2 {[%clk 0:01:09]}  Bc5 {[%clk 0:01:34]} 24. Nd4 {[%clk 0:01:07]}  Rb4 {[%clk 0:01:26]} 25. a5 {[%clk 0:01:05]}  Rb5 {[%clk 0:00:53]} 26. Ra1 {[%clk 0:00:37]}  Bb4 {[%clk 0:00:46]} 27. Nxb5 {[%clk 0:00:34]}  axb5 {[%clk 0:00:46]} 28. a6 {[%clk 0:00:34]}  Nc6 {[%clk 0:00:41]} 29. a7 {[%clk 0:00:33]}  Ra8 {[%clk 0:00:41]} 30. b3 {[%clk 0:00:32]}  c3 {[%clk 0:00:38]} 31. Kf1 {[%clk 0:00:22]}  e5 {[%clk 0:00:37]} 32. Ke2 {[%clk 0:00:22]}  Nd4+ {[%clk 0:00:37]} 33. Bxd4 {[%clk 0:00:23]}  exd4 {[%clk 0:00:38]} 34. Kd3 {[%clk 0:00:23]}  Bc5 {[%clk 0:00:38]} 35. b4 {[%clk 0:00:22]}  Rxa7 {[%clk 0:00:36]} 36. Rxa7+ {[%clk 0:00:19]}  Bxa7 {[%clk 0:00:36]} 37. Ra2 {[%clk 0:00:20]}  Bb8 {[%clk 0:00:28]} 38. Kxd4 {[%clk 0:00:19]}  Bxh2 {[%clk 0:00:26]} 39. Kxc3 {[%clk 0:00:20]}  Be5+ {[%clk 0:00:25]} 40. Kb3 {[%clk 0:00:20]}  Kf6 {[%clk 0:00:21]} 41. Ra5 {[%clk 0:00:20]}  g5 {[%clk 0:00:18]} 42. Rxb5 {[%clk 0:00:20]}  h5 {[%clk 0:00:18]} 43. Rc5 {[%clk 0:00:19]}  g4 {[%clk 0:00:16]} 44. b5 {[%clk 0:00:19]}  gxf3 {[%clk 0:00:16]} 45. gxf3 {[%clk 0:00:19]}  h4 {[%clk 0:00:16]} 46. Rc1 {[%clk 0:00:17]}  Bd4 {[%clk 0:00:15]} 47. b6 {[%clk 0:00:17]}  h3 {[%clk 0:00:11]} 48. b7 {[%clk 0:00:16]}  Be5 {[%clk 0:00:08]} 49. Kc4 {[%clk 0:00:13]}  h2 {[%clk 0:00:08]} 50. Kd5 {[%clk 0:00:14]}  Bb8 {[%clk 0:00:07]} 51. Kc6 {[%clk 0:00:08]}  Kg5 {[%clk 0:00:06]} 52. Kd7 {[%clk 0:00:08]}  Kf4 {[%clk 0:00:05]} 53. Kc8 {[%clk 0:00:05]}  Be5 {[%clk 0:00:05]} 54. b8=Q {[%clk 0:00:02]}  Bxb8 {[%clk 0:00:05]} 55. Kxb8 {[%clk 0:00:02]}  Kxf3 {[%clk 0:00:05]} 56. e5 {[%clk 0:00:02]}  Kg2 {[%clk 0:00:03]} 57. Kc7 {[%clk 0:00:03]}  h1=Q {[%clk 0:00:03]} 58. Rxh1 {[%clk 0:00:03]}  Kxh1 {[%clk 0:00:04]} 59. Kd6 {[%clk 0:00:04]}  Kg2 {[%clk 0:00:05]} 60. Ke7 {[%clk 0:00:04]}  Kf3 {[%clk 0:00:05]} 61. Kxf7 {[%clk 0:00:05]}  Kf4 {[%clk 0:00:03]} 62. e6 {[%clk 0:00:06]} 1-0


[Site "https://www.chess.com"]

[Event "Titled Tuesday Blitz June 20 Late 2023"]
[White "Olsson, William"]
[Black "Fiorito, Francisco"]
[WhiteFideId "1741721"]
[BlackFideId "180165"]
[WhiteElo "2197"]
[BlackElo "2319"]
[Result "0-1"]
[Round "8"]
[TimeControl "180+2"]
[Date "2023.06.20"]
[WhiteClock "0:00:00"]
[BlackClock "0:00:07"]
[Board "65"]

1. c4 {[%clk 0:03:00]}  c5 {[%clk 0:02:58]} 2. g3 {[%clk 0:02:59]}  g6 {[%clk 0:02:57]} 3. Bg2 {[%clk 0:02:59]}  Bg7 {[%clk 0:02:58]} 4. Nc3 {[%clk 0:02:59]}  Nc6 {[%clk 0:02:58]} 5. a3 {[%clk 0:02:59]}  e6 {[%clk 0:02:58]} 6. Rb1 {[%clk 0:02:58]}  Nge7 {[%clk 0:02:55]} 7. b4 {[%clk 0:02:58]}  d6 {[%clk 0:02:54]} 8. Nf3 {[%clk 0:02:57]}  O-O {[%clk 0:02:54]} 9. O-O {[%clk 0:02:57]}  Rb8 {[%clk 0:02:51]} 10. bxc5 {[%clk 0:02:50]}  dxc5 {[%clk 0:02:50]} 11. Bb2 {[%clk 0:02:46]}  b6 {[%clk 0:02:47]} 12. d3 {[%clk 0:02:45]}  Bb7 {[%clk 0:02:47]} 13. Ne4 {[%clk 0:02:42]}  e5 {[%clk 0:02:42]} 14. h4 {[%clk 0:02:39]}  h6 {[%clk 0:02:36]} 15. h5 {[%clk 0:02:36]}  g5 {[%clk 0:02:36]} 16. g4 {[%clk 0:02:34]}  Nd4 {[%clk 0:02:35]} 17. Bxd4 {[%clk 0:02:29]}  exd4 {[%clk 0:02:33]} 18. Ng3 {[%clk 0:02:29]}  f5 {[%clk 0:02:30]} 19. Nh2 {[%clk 0:02:22]}  Bxg2 {[%clk 0:02:19]} 20. Kxg2 {[%clk 0:02:23]}  Qd7 {[%clk 0:02:19]} 21. f3 {[%clk 0:02:21]}  Qe6 {[%clk 0:02:13]} 22. gxf5 {[%clk 0:02:16]}  Nxf5 {[%clk 0:02:13]} 23. Nxf5 {[%clk 0:02:16]}  Rxf5 {[%clk 0:02:12]} 24. Ng4 {[%clk 0:02:16]}  Re8 {[%clk 0:02:11]} 25. Rb2 {[%clk 0:02:13]}  Qf7 {[%clk 0:02:09]} 26. Rh1 {[%clk 0:02:10]}  Rf4 {[%clk 0:02:09]} 27. a4 {[%clk 0:02:06]}  Qf5 {[%clk 0:02:07]} 28. Rh3 {[%clk 0:01:53]}  Rxg4+ {[%clk 0:01:58]} 29. fxg4 {[%clk 0:01:53]}  Qxg4+ {[%clk 0:01:58]} 30. Rg3 {[%clk 0:01:53]}  Qxh5 {[%clk 0:01:59]} 31. Qf1 {[%clk 0:01:44]}  Be5 {[%clk 0:01:57]} 32. Qf3 {[%clk 0:01:44]}  Qg6 {[%clk 0:01:44]} 33. Qd5+ {[%clk 0:01:32]}  Re6 {[%clk 0:01:31]} 34. Rf3 {[%clk 0:01:29]}  Bf4 {[%clk 0:01:30]} 35. Rb1 {[%clk 0:01:14]}  Qf7 {[%clk 0:01:29]} 36. Kf2 {[%clk 0:01:06]}  Kg7 {[%clk 0:01:24]} 37. Rg1 {[%clk 0:01:05]}  Qe7 {[%clk 0:01:06]} 38. e4 {[%clk 0:00:43]}  dxe3+ {[%clk 0:01:04]} 39. Ke2 {[%clk 0:00:43]}  Rf6 {[%clk 0:00:59]} 40. a5 {[%clk 0:00:19]}  Qe8 {[%clk 0:00:52]} 41. axb6 {[%clk 0:00:18]}  Qa4 {[%clk 0:00:47]} 42. Qb7+ {[%clk 0:00:14]}  Rf7 {[%clk 0:00:44]} 43. Qe4 {[%clk 0:00:11]}  Qc2+ {[%clk 0:00:44]} 44. Kf1 {[%clk 0:00:12]}  axb6 {[%clk 0:00:24]} 45. Rg4 {[%clk 0:00:11]}  e2+ {[%clk 0:00:18]} 46. Qxe2 {[%clk 0:00:11]}  Qc1+ {[%clk 0:00:15]} 47. Kg2 {[%clk 0:00:10]}  Rf6 {[%clk 0:00:13]} 48. Qe4 {[%clk 0:00:08]}  Qd2+ {[%clk 0:00:12]} 49. Rf2 {[%clk 0:00:08]}  Qc1 {[%clk 0:00:12]} 50. Re2 {[%clk 0:00:06]}  h5 {[%clk 0:00:10]} 51. Qb7+ {[%clk 0:00:02]}  Rf7 {[%clk 0:00:09]} 52. Re7 {[%clk 0:00:00]}  Qb2+ {[%clk 0:00:07]} 0-1


[Site "https://www.chess.com"]

[Event "Titled Tuesday Blitz June 20 Late 2023"]
[White "Sharan, Rao"]
[Black "Buscar, Michael"]
[WhiteFideId "5073464"]
[BlackFideId "2603616"]
[WhiteElo "2149"]
[BlackElo "2010"]
[Result "1-0"]
[Round "8"]
[TimeControl "180+2"]
[Date "2023.06.20"]
[WhiteClock "0:02:20"]
[BlackClock "0:01:40"]
[Board "67"]

1. d4 {[%clk 0:03:00]}  d5 {[%clk 0:02:59]} 2. Nc3 {[%clk 0:03:00]}  Nf6 {[%clk 0:02:56]} 3. Bf4 {[%clk 0:03:01]}  a6 {[%clk 0:02:46]} 4. e3 {[%clk 0:03:00]}  Nbd7 {[%clk 0:02:42]} 5. g4 {[%clk 0:02:59]}  e6 {[%clk 0:02:36]} 6. g5 {[%clk 0:02:57]}  Ne4 {[%clk 0:02:36]} 7. Bd3 {[%clk 0:02:55]}  Nxc3 {[%clk 0:02:36]} 8. bxc3 {[%clk 0:02:56]}  Bd6 {[%clk 0:02:35]} 9. Ne2 {[%clk 0:02:56]}  Qe7 {[%clk 0:02:33]} 10. Ng3 {[%clk 0:02:47]}  b6 {[%clk 0:02:26]} 11. Qf3 {[%clk 0:02:42]}  Bb7 {[%clk 0:02:21]} 12. h4 {[%clk 0:02:38]}  O-O-O {[%clk 0:02:21]} 13. Bxd6 {[%clk 0:02:37]}  cxd6 {[%clk 0:02:19]} 14. Kd2 {[%clk 0:02:35]}  Kb8 {[%clk 0:02:18]} 15. Qe2 {[%clk 0:02:35]}  Ka7 {[%clk 0:02:18]} 16. a4 {[%clk 0:02:33]}  Rc8 {[%clk 0:02:16]} 17. Rhb1 {[%clk 0:02:32]}  Rc7 {[%clk 0:02:10]} 18. a5 {[%clk 0:02:32]}  b5 {[%clk 0:02:10]} 19. Bxb5 {[%clk 0:02:33]}  axb5 {[%clk 0:02:10]} 20. Qxb5 {[%clk 0:02:33]}  Rhc8 {[%clk 0:02:04]} 21. a6 {[%clk 0:02:23]}  Bc6 {[%clk 0:01:58]} 22. Qb7+ {[%clk 0:02:19]}  Rxb7 {[%clk 0:01:40]} 23. axb7+ {[%clk 0:02:20]} 1-0


[Site "https://www.chess.com"]

[Event "Titled Tuesday Blitz June 20 Late 2023"]
[White "Zhigalko, Sergei"]
[Black "sebastianmarinp"]
[WhiteFideId "13502956"]
[WhiteElo "2626"]
[BlackElo "2389"]
[Result "1-0"]
[Round "8"]
[TimeControl "180+2"]
[Date "2023.06.20"]
[WhiteClock "0:00:05"]
[BlackClock "0:00:00"]
[Board "68"]

1. h4 {[%clk 0:03:00]}  h5 {[%clk 0:02:59]} 2. a4 {[%clk 0:02:58]}  a5 {[%clk 0:02:58]} 3. b3 {[%clk 0:02:58]}  e5 {[%clk 0:02:56]} 4. Bb2 {[%clk 0:02:58]}  Nc6 {[%clk 0:02:56]} 5. e3 {[%clk 0:02:55]}  d6 {[%clk 0:02:52]} 6. Nf3 {[%clk 0:02:52]}  Bg4 {[%clk 0:02:51]} 7. Be2 {[%clk 0:02:52]}  Nf6 {[%clk 0:02:47]} 8. d3 {[%clk 0:02:48]}  Ne7 {[%clk 0:02:46]} 9. Nbd2 {[%clk 0:02:46]}  Ng6 {[%clk 0:02:43]} 10. g3 {[%clk 0:02:45]}  c6 {[%clk 0:02:28]} 11. Ng5 {[%clk 0:02:25]}  Qc7 {[%clk 0:02:20]} 12. O-O {[%clk 0:02:08]}  d5 {[%clk 0:02:13]} 13. Ndf3 {[%clk 0:01:47]}  Bd6 {[%clk 0:02:06]} 14. Nh2 {[%clk 0:01:47]}  Bf5 {[%clk 0:01:48]} 15. Kh1 {[%clk 0:01:18]}  O-O-O {[%clk 0:01:38]} 16. f4 {[%clk 0:00:55]}  exf4 {[%clk 0:00:54]} 17. exf4 {[%clk 0:00:55]}  Ng4 {[%clk 0:00:46]} 18. Bxg7 {[%clk 0:00:36]}  f6 {[%clk 0:00:24]} 19. Bxh8 {[%clk 0:00:25]}  fxg5 {[%clk 0:00:23]} 20. Be5 {[%clk 0:00:06]}  Ne3 {[%clk 0:00:18]} 21. Bxd6 {[%clk 0:00:04]}  Qxd6 {[%clk 0:00:15]} 22. Qd2 {[%clk 0:00:05]}  Nxf1 {[%clk 0:00:13]} 23. Rxf1 {[%clk 0:00:06]}  gxf4 {[%clk 0:00:14]} 24. Bxh5 {[%clk 0:00:03]}  fxg3 {[%clk 0:00:13]} 25. Rxf5 {[%clk 0:00:03]}  gxh2 {[%clk 0:00:13]} 26. Qxh2 {[%clk 0:00:04]}  Qxh2+ {[%clk 0:00:09]} 27. Kxh2 {[%clk 0:00:05]}  Nxh4 {[%clk 0:00:09]} 28. Rf4 {[%clk 0:00:05]}  Rh8 {[%clk 0:00:00]} 29. Rxh4 {[%clk 0:00:05]} 1-0


[Site "https://www.chess.com"]

[Event "Titled Tuesday Blitz June 20 Late 2023"]
[White "Piesik, Piotr"]
[Black "Yeritsyan, Hayk"]
[WhiteFideId "1136194"]
[BlackFideId "13307320"]
[WhiteElo "2303"]
[BlackElo "2456"]
[Result "1-0"]
[Round "8"]
[TimeControl "180+2"]
[Date "2023.06.20"]
[WhiteClock "0:02:08"]
[BlackClock "0:01:28"]
[Board "74"]

1. Nf3 {[%clk 0:02:50]}  d5 {[%clk 0:02:58]} 2. g3 {[%clk 0:02:50]}  Nf6 {[%clk 0:02:58]} 3. Bg2 {[%clk 0:02:51]}  Bf5 {[%clk 0:02:58]} 4. O-O {[%clk 0:02:52]}  e6 {[%clk 0:02:59]} 5. c4 {[%clk 0:02:52]}  c6 {[%clk 0:02:59]} 6. cxd5 {[%clk 0:02:53]}  exd5 {[%clk 0:02:59]} 7. d3 {[%clk 0:02:53]}  h6 {[%clk 0:02:58]} 8. Nc3 {[%clk 0:02:54]}  Be7 {[%clk 0:02:59]} 9. Qb3 {[%clk 0:02:54]}  Qb6 {[%clk 0:02:59]} 10. Qc2 {[%clk 0:02:55]}  O-O {[%clk 0:02:59]} 11. e4 {[%clk 0:02:55]}  Bh7 {[%clk 0:02:57]} 12. Be3 {[%clk 0:02:54]}  Qd8 {[%clk 0:02:57]} 13. Rad1 {[%clk 0:02:45]}  Na6 {[%clk 0:02:51]} 14. a3 {[%clk 0:02:46]}  Nc5 {[%clk 0:02:50]} 15. Bxc5 {[%clk 0:02:32]}  Bxc5 {[%clk 0:02:51]} 16. Nxd5 {[%clk 0:02:31]}  Bxf2+ {[%clk 0:02:39]} 17. Qxf2 {[%clk 0:02:32]}  cxd5 {[%clk 0:02:37]} 18. e5 {[%clk 0:02:32]}  Ng4 {[%clk 0:02:29]} 19. Qd4 {[%clk 0:02:31]}  Qb6 {[%clk 0:02:18]} 20. Qxb6 {[%clk 0:02:28]}  axb6 {[%clk 0:02:19]} 21. Rfe1 {[%clk 0:02:27]}  f6 {[%clk 0:01:51]} 22. e6 {[%clk 0:02:25]}  Rfd8 {[%clk 0:01:46]} 23. h3 {[%clk 0:02:21]}  Ne5 {[%clk 0:01:45]} 24. Nxe5 {[%clk 0:02:21]}  fxe5 {[%clk 0:01:46]} 25. Rxe5 {[%clk 0:02:22]}  d4 {[%clk 0:01:46]} 26. Bxb7 {[%clk 0:02:20]}  Ra7 {[%clk 0:01:46]} 27. e7 {[%clk 0:02:17]}  Re8 {[%clk 0:01:46]} 28. Bd5+ {[%clk 0:02:15]}  Kh8 {[%clk 0:01:46]} 29. Rf1 {[%clk 0:02:11]}  Bxd3 {[%clk 0:01:35]} 30. Rf8+ {[%clk 0:02:10]}  Kh7 {[%clk 0:01:28]} 31. Rxe8 {[%clk 0:02:08]} 1-0


[Site "https://www.chess.com"]